[Event "GCT Saint Louis Rapid 2019"]
[Site "Saint Louis"]
[Date "2019.08.10"]
[Round "1.1"]
[White "Ding, Liren"]
[Black "Carlsen, Magnus"]
[Result "1-0"]
[ECO "D39"]
[WhiteElo "2812"]
[BlackElo "2872"]
[Annotator "RC"]
[PlyCount "89"]
[EventDate "2019.08.10"]
[EventType "tourn"]
[EventCountry "USA"]
[SourceTitle "playchess.com"]
[Source "ChessBase"]
[SourceQuality "1"]
[TimeMode "Bronstein"]
[TimeControl "1500+10"]

1. d4 Nf6 {[%emt 0:00:00]} 2. c4 {[%emt 0:00:00]} e6 {[%emt 0:00:00]} 3. Nf3 {[%emt 0:00:00]} d5 {[%emt 0:00:00]} 4. Nc3 {[%emt 0:00:00]} Bb4 {[%emt 0:00:00]} 5. Bg5 {[%emt 0:00:02]} dxc4 {[%emt 0:00:00]} 6. e4 {[%emt 0:00:02]} b5 {[%emt 0:00:00]} 7. a4 {[%emt 0:00:15]} c5 8. axb5 {[%emt 0:00:13]} cxd4 {[%emt 0:01:43]} 9. Nxd4 {[%emt 0:00:10]} h6 {[%emt 0:00:10]} 10. Be3 {[%emt 0:00:10]} Nxe4 {[%emt 0:00:40]} 11. Qc2 {[%emt 0:00:10]} Bb7 {[%emt 0:03:26]} 12. Bxc4 {[%emt 0:01:38]} Qc7 {[%emt 0:02:13]} 13. Qb3 {[%emt 0:03:19]} Bxc3+ {[%emt 0:00:10]} 14. bxc3 {[%emt 0:00:10]} O-O {[%emt 0:01:05]} 15. O-O {[%emt 0:02:23]} Rc8 {[%emt 0:03:11]} 16. Bd3 {[%emt 0:00:16]} Nc5 {[%emt 0:00:17]} 17. Qb1 {[%emt 0:00:10]} Nxd3 {[%emt 0:00:10]} 18. Qxd3 {[%emt 0:00:10]} Nd7 {[%emt 0:00:20]} 19. Qe2 {[%emt 0:03:19]} Nb6 {[%emt 0:02:42]} 20. Qg4 {[%emt 0:00:27]} Kh7 {[%emt 0:00:50]} 21. Bf4 {[%emt 0:00:18]} Qc5 {[%emt 0:00:43]} 22. Rfe1 {[%emt 0:00:39]} Nc4 {[%emt 0:01:30]} 23. Rad1 {[%emt 0:00:59]} Rd8 {[%emt 0:00:49]} 24. Rd3 {[%emt 0:00:23]} Qe7 {[%emt 0:03:36]} 25. Nc6 {[%emt 0:04:27]} Bxc6 {[%emt 0:00:10]} 26. Rxd8 {[%emt 0:00:10]} Rxd8 {[%emt 0:00:18]} 27. bxc6 {[%emt 0:00:10]} Nb6 {[%emt 0:03:06]} 28. Be5 {[%emt 0:01:08]} Qg5 {[%emt 0:00:10]} 29. c7 {[%emt 0:00:51]} Rd5 {[%emt 0:00:20]} 30. Qe4+ {[%emt 0:01:53]} Qg6 {[%emt 0:00:10]} 31. Qb4 {[%emt 0:00:52]} Qd3 {[%emt 0:00:21]} 32. h3 {[%emt 0:00:37]} Qb5 {[%emt 0:00:10]} 33. Qe4+ {[%emt 0:01:38]} f5 {[%emt 0:00:10]} 34. Qf4 {[%emt 0:00:10]} Qd7 {[%emt 0:00:10]} 35. Bd4 {[%emt 0:00:58]} Nc8 {[%emt 0:00:10]} 36. Qg3 {[%emt 0:00:33]} Rd6 {[%emt 0:00:20]} 37. h4 {[%emt 0:00:10]} Rc6 {[%emt 0:00:18]} 38. h5 {[%emt 0:00:10]} Qf7 {[%emt 0:00:10]} 39. Be5 {[%emt 0:00:10]} Nb6 {[%emt 0:00:10]} 40. Ra1 {[%emt 0:00:12]} Nc4 {[%emt 0:00:11]} 41. Rxa7 {[%emt 0:00:10]} Nxe5 {[%emt 0:00:10]} 42. Qxe5 {[%emt 0:00:28]} Qxh5 {[%emt 0:00:10]} 43. Qxg7+ {[%emt 0:00:10]} Kxg7 {[%emt 0:00:10]} 44. c8=Q+ {[%emt 0:00:10]} Kf6 {[%emt 0:00:10]} 45. Qd8+ {[%emt 0:00:10]} 1-0

[Event "GCT Saint Louis Rapid 2019"]
[Site "Saint Louis"]
[Date "2019.08.10"]
[Round "1.5"]
[White "Mamedyarov, Shakhriyar"]
[Black "Dominguez Perez, Leinier"]
[Result "1-0"]
[ECO "D35"]
[WhiteElo "2765"]
[BlackElo "2760"]
[Annotator "RC"]
[PlyCount "69"]
[EventDate "2019.08.10"]
[EventType "tourn"]
[EventCountry "USA"]
[SourceTitle "playchess.com"]
[Source "ChessBase"]
[SourceQuality "1"]
[TimeMode "Bronstein"]
[TimeControl "1500+10"]

1. d4 {[%emt 0:00:00]} d5 {[%emt 0:00:00]} 2. c4 {[%emt 0:00:00]} e6 {[%emt 0:00:00]} 3. Nc3 {[%emt 0:00:00]} Nf6 {[%emt 0:00:00]} 4. cxd5 {[%emt 0:00:00]} Nxd5 {[%emt 0:00:00]} 5. e4 {[%emt 0:00:00]} Nxc3 {[%emt 0:00:00]} 6. bxc3 {[%emt 0:00:00]} c5 {[%emt 0:00:00]} 7. Rb1 {[%emt 0:00:14]} Be7 {[%emt 0:00:00]} 8. Bc4 {[%emt 0:00:46]} O-O {[%emt 0:00:11]} 9. Nf3 {[%emt 0:00:18]} Qc7 {[%emt 0:00:22]} 10. Qe2 {[%emt 0:00:12]} a6 {[%emt 0:00:10]} 11. O-O {[%emt 0:00:21]} b5 {[%emt 0:00:12]} 12. Bd3 {[%emt 0:00:10]} Nd7 {[%emt 0:00:10]} 13. Rd1 {[%emt 0:00:30]} h6 {[%emt 0:00:26]} 14. a4 {[%emt 0:01:09]} bxa4 {[%emt 0:03:20]} 15. g3 {[%emt 0:00:10]} cxd4 {[%emt 0:05:53]} 16. cxd4 {[%emt 0:00:10]} a5 {[%emt 0:00:10]} 17. Bf4 {[%emt 0:03:14]} Qa7 {[%emt 0:00:11]} 18. Rdc1 Bb4 {[%emt 0:03:25]} 19. Rc7 {[%emt 0:02:25]} Qb6 {[%emt 0:00:10]} 20. Rbc1 {[%emt 0:00:10]} Ba3 {[%emt 0:02:30]} 21. Rb1 {[%emt 0:00:41]} Bb4 {[%emt 0:00:10]} 22. Rbc1 {[%emt 0:00:10]} Ba3 {[%emt 0:00:10]} 23. R1c6 {[%emt 0:00:10]} Qb2 {[%emt 0:00:10]} 24. Rc2 {[%emt 0:00:38]} Qb1+ {[%emt 0:05:05]} 25. Kg2 {[%emt 0:00:14]} Qb6 {[%emt 0:00:48]} 26. e5 {[%emt 0:02:58]} f5 {[%emt 0:00:45]} 27. R2c6 {[%emt 0:03:28]} Qb2 {[%emt 0:00:28]} 28. Qe3 {[%emt 0:00:46]} Bb7 {[%emt 0:01:12]} 29. Rc2 Bxf3+ {[%emt 0:01:04]} 30. Kxf3 {[%emt 0:03:46]} Qb1 31. Rxd7 {[%emt 0:00:39]} Qh1+ {[%emt 0:00:10]} 32. Ke2 Rfb8 {[%emt 0:01:23]} 33. Qf3 {[%emt 0:00:52]} Qg1 34. Bxh6 Bf8 {[%emt 0:00:11]} 35. Bc4 {[%emt 0:01:18]} 1-0

[Event "GCT Saint Louis Rapid 2019"]
[Site "Saint Louis"]
[Date "2019.08.11"]
[Round "4.1"]
[White "Caruana, Fabiano"]
[Black "Carlsen, Magnus"]
[Result "1-0"]
[ECO "B30"]
[WhiteElo "2819"]
[BlackElo "2872"]
[Annotator "RC"]
[PlyCount "77"]
[EventDate "2019.08.10"]
[EventType "tourn"]
[EventCountry "USA"]
[SourceTitle "playchess.com"]
[Source "ChessBase"]
[SourceQuality "1"]
[TimeMode "Bronstein"]
[TimeControl "1500+10"]

1. e4 {[%emt 0:00:00]} c5 {[%emt 0:00:00]} 2. Nf3 {[%emt 0:00:00]} Nc6 {[%emt 0:00:00]} 3. Bb5 {[%emt 0:00:00]} e6 {[%emt 0:00:00]} 4. Bxc6 {[%emt 0:00:00]} bxc6 {[%emt 0:00:00]} 5. d3 {[%emt 0:00:00]} Ne7 {[%emt 0:00:00]} 6. b3 {[%emt 0:00:00]} Ng6 {[%emt 0:01:03]} 7. h4 {[%emt 0:00:00]} h5 {[%emt 0:00:10]} 8. e5 {[%emt 0:00:00]} f6 {[%emt 0:00:31]} 9. Nbd2 {[%emt 0:00:08]} d6 {[%emt 0:00:41]} 10. exd6 {[%emt 0:00:08]} e5 {[%emt 0:00:10]} 11. Bb2 {[%emt 0:00:42]} Bg4 12. Qe2 {[%emt 0:01:27]} Qxd6 {[%emt 0:01:13]} 13. g3 {[%emt 0:01:15]} Be7 {[%emt 0:00:30]} 14. O-O-O {[%emt 0:00:10]} Nf8 {[%emt 0:00:10]} 15. Rde1 {[%emt 0:00:18]} Ne6 {[%emt 0:00:11]} 16. Qe4 {[%emt 0:00:12]} Qd5 {[%emt 0:00:49]} 17. Nxe5 {[%emt 0:02:06]} Qxe4 {[%emt 0:00:57]} 18. dxe4 {[%emt 0:00:10]} fxe5 {[%emt 0:00:31]} 19. f3 {[%emt 0:00:10]} Nd4 {[%emt 0:01:06]} 20. fxg4 {[%emt 0:00:10]} hxg4 {[%emt 0:00:10]} 21. Nc4 {[%emt 0:01:05]} O-O 22. Kb1 {[%emt 0:02:33]} Rf2 {[%emt 0:04:58]} 23. Nxe5 Nxc2 {[%emt 0:00:10]} 24. Nxg4 {[%emt 0:00:34]} Rg2 25. Reg1 {[%emt 0:02:25]} Re2 {[%emt 0:00:10]} 26. h5 {[%emt 0:00:23]} c4 {[%emt 0:03:29]} 27. h6 {[%emt 0:01:53]} c3 {[%emt 0:05:57]} 28. h7+ {[%emt 0:00:10]} Kf7 {[%emt 0:00:10]} 29. Rf1+ {[%emt 0:01:09]} Bf6 {[%emt 0:00:10]} 30. Bc1 {[%emt 0:03:10]} Nb4 {[%emt 0:01:14]} 31. e5 {[%emt 0:00:38]} Rxa2 {[%emt 0:00:38]} 32. Ne3 {[%emt 0:00:14]} Rh8 {[%emt 0:01:33]} 33. exf6 {[%emt 0:00:10]} g5 {[%emt 0:00:10]} 34. Rd1 {[%emt 0:01:06]} a5 {[%emt 0:00:16]} 35. Rd4 {[%emt 0:01:07]} c2+ {[%emt 0:00:48]} 36. Nxc2 {[%emt 0:00:10]} Rxc2 {[%emt 0:00:10]} 37. Rxb4 {[%emt 0:00:10]} Rxc1+ {[%emt 0:00:10]} 38. Kxc1 {[%emt 0:00:10]} axb4 {[%emt 0:00:10]} 39. Rh6 {[%emt 0:00:10]} 1-0

[Event "GCT Saint Louis Rapid 2019"]
[Site "Saint Louis"]
[Date "2019.08.11"]
[Round "4.5"]
[White "Yu, Yangyi"]
[Black "Mamedyarov, Shakhriyar"]
[Result "1-0"]
[ECO "C49"]
[WhiteElo "2736"]
[BlackElo "2765"]
[Annotator "RC"]
[PlyCount "87"]
[EventDate "2019.08.10"]
[EventType "tourn"]
[EventCountry "USA"]
[SourceTitle "playchess.com"]
[Source "ChessBase"]
[SourceQuality "1"]
[TimeMode "Bronstein"]
[TimeControl "1500+10"]

1. e4 {[%emt 0:00:00]} e5 {[%emt 0:00:00]} 2. Nf3 {[%emt 0:00:00]} Nc6 {[%emt 0:00:00]} 3. Nc3 {[%emt 0:00:00]} Nf6 {[%emt 0:00:00]} 4. Bb5 {[%emt 0:00:00]} Bb4 {[%emt 0:00:00]} 5. O-O {[%emt 0:00:00]} O-O {[%emt 0:00:25]} 6. d3 {[%emt 0:00:00]} d6 {[%emt 0:00:13]} 7. Ne2 {[%emt 0:00:00]} Ne7 {[%emt 0:00:11]} 8. c3 {[%emt 0:00:00]} Ba5 {[%emt 0:00:10]} 9. Ng3 {[%emt 0:00:00]} Ng6 {[%emt 0:00:11]} 10. d4 {[%emt 0:00:00]} c6 {[%emt 0:00:11]} 11. Bd3 {[%emt 0:00:00]} Re8 {[%emt 0:00:10]} 12. h3 {[%emt 0:00:00]} h6 {[%emt 0:00:10]} 13. a4 {[%emt 0:00:12]} exd4 {[%emt 0:01:43]} 14. cxd4 {[%emt 0:00:12]} c5 {[%emt 0:01:54]} 15. Bd2 {[%emt 0:00:36]} cxd4 {[%emt 0:01:22]} 16. Nxd4 {[%emt 0:00:22]} Bb6 {[%emt 0:00:10]} 17. Bc3 {[%emt 0:02:32]} d5 {[%emt 0:00:10]} 18. Bb5 {[%emt 0:00:55]} Rxe4 {[%emt 0:01:12]} 19. Nxe4 {[%emt 0:01:08]} Nxe4 {[%emt 0:00:10]} 20. Nf3 {[%emt 0:05:01]} a6 {[%emt 0:05:40]} 21. Bd3 {[%emt 0:00:51]} Nxc3 {[%emt 0:00:10]} 22. bxc3 {[%emt 0:00:10]} Nf4 {[%emt 0:00:10]} 23. Re1 {[%emt 0:02:14]} Bd7 {[%emt 0:01:04]} 24. Bf1 {[%emt 0:02:14]} Rc8 {[%emt 0:00:10]} 25. c4 {[%emt 0:01:52]} dxc4 {[%emt 0:01:00]} 26. Re4 {[%emt 0:01:05]} g5 {[%emt 0:02:53]} 27. Rxc4 {[%emt 0:01:44]} Rxc4 {[%emt 0:01:10]} 28. Bxc4 {[%emt 0:00:10]} Qc7 {[%emt 0:02:38]} 29. Rc1 {[%emt 0:00:13]} Nxh3+ {[%emt 0:00:21]} 30. Kf1 {[%emt 0:00:35]} Qf4 {[%emt 0:00:40]} 31. Rc3 {[%emt 0:01:46]} Bf5 {[%emt 0:01:51]} 32. Bxf7+ {[%emt 0:00:56]} Kxf7 {[%emt 0:01:23]} 33. Qb3+ {[%emt 0:00:47]} Kg6 {[%emt 0:00:47]} 34. Qxb6+ {[%emt 0:00:29]} Kh5 {[%emt 0:00:10]} 35. gxh3 {[%emt 0:00:59]} Qxa4 {[%emt 0:00:40]} 36. Qd4 {[%emt 0:00:44]} Bxh3+ {[%emt 0:00:18]} 37. Kg1 {[%emt 0:00:10]} Qa1+ {[%emt 0:00:10]} 38. Kh2 {[%emt 0:00:12]} Qf1 {[%emt 0:00:10]} 39. Ne1 {[%emt 0:00:31]} Bg4 {[%emt 0:00:10]} 40. Qe3 {[%emt 0:00:13]} Qb5 {[%emt 0:00:10]} 41. Ng2 {[%emt 0:00:14]} Qd7 {[%emt 0:00:16]} 42. Qe5 {[%emt 0:00:10]} Qf5 {[%emt 0:00:10]} 43. Qe8+ {[%emt 0:00:15]} Qg6 {[%emt 0:00:10]} 44. Nf4+ {[%emt 0:00:12]} 1-0

[Event "GCT Saint Louis Rapid 2019"]
[Site "Saint Louis"]
[Date "2019.08.11"]
[Round "6.1"]
[White "Aronian, Levon"]
[Black "Dominguez Perez, Leinier"]
[Result "1/2-1/2"]
[ECO "C67"]
[WhiteElo "2756"]
[BlackElo "2760"]
[Annotator "ChessBase"]
[PlyCount "139"]
[EventDate "2019.08.10"]
[EventType "tourn"]
[EventCountry "USA"]
[SourceTitle "playchess.com"]
[Source "ChessBase"]
[SourceQuality "1"]
[TimeMode "Bronstein"]
[TimeControl "1500+10"]

1. e4 {[%emt 0:00:00]} e5 {[%emt 0:00:07]} 2. Nf3 {[%emt 0:00:00]} Nc6 {[%emt 0:00:07]} 3. Bb5 {[%emt 0:00:00]} Nf6 {[%emt 0:00:07]} 4. O-O {[%emt 0:00:00]} Nxe4 {[%emt 0:00:07]} 5. d4 {[%emt 0:00:00]} Nd6 {[%emt 0:00:07]} 6. Bxc6 {[%emt 0:00:00]} dxc6 {[%emt 0:00:07]} 7. dxe5 {[%emt 0:00:00]} Nf5 {[%emt 0:00:07]} 8. Qxd8+ {[%emt 0:00:00]} Kxd8 {[%emt 0:00:07]} 9. Nc3 {[%emt 0:00:00]} h6 {[%emt 0:00:14]} 10. h3 {[%emt 0:00:04]} Bd7 {[%emt 0:00:15]} 11. b3 {[%emt 0:00:09]} Kc8 {[%emt 0:00:48]} 12. Bb2 {[%emt 0:00:09]} b6 {[%emt 0:01:43]} 13. Rad1 {[%emt 0:00:11]} c5 {[%emt 0:00:44]} 14. Nd5 {[%emt 0:02:37]} a5 {[%emt 0:00:10]} 15. Rd3 {[%emt 0:01:00]} Ne7 {[%emt 0:06:16]} 16. Ne3 {[%emt 0:04:55]} Be6 {[%emt 0:04:39]} 17. Nd2 {[%emt 0:00:40]} a4 {[%emt 0:02:02]} 18. f4 {[%emt 0:04:23]} axb3 {[%emt 0:00:10]} 19. axb3 {[%emt 0:00:10]} Ra2 {[%emt 0:00:10]} 20. Rb1 {[%emt 0:02:22]} Nf5 {[%emt 0:01:01]} 21. Ne4 {[%emt 0:00:48]} Nxe3 {[%emt 0:02:54]} 22. Rxe3 {[%emt 0:00:10]} c4 {[%emt 0:01:19]} 23. bxc4 {[%emt 0:01:21]} Ra4 {[%emt 0:00:10]} 24. c5 {[%emt 0:01:35]} Bxc5 {[%emt 0:01:36]} 25. Nxc5 {[%emt 0:00:10]} bxc5 {[%emt 0:00:10]} 26. Ra3 {[%emt 0:00:19]} Rxa3 {[%emt 0:00:20]} 27. Bxa3 {[%emt 0:00:10]} Rd8 {[%emt 0:00:10]} 28. Bxc5 {[%emt 0:00:55]} Rd2 {[%emt 0:00:10]} 29. Bf8 {[%emt 0:00:49]} Bd5 {[%emt 0:00:27]} 30. g4 {[%emt 0:00:10]} Rg2+ {[%emt 0:00:16]} 31. Kf1 {[%emt 0:00:10]} Rxc2 {[%emt 0:00:10]} 32. Bxg7 {[%emt 0:02:01]} Bg2+ {[%emt 0:00:10]} 33. Ke1 {[%emt 0:01:25]} Bxh3 {[%emt 0:00:10]} 34. Rb3 {[%emt 0:00:16]} Bxg4 {[%emt 0:00:29]} 35. Bxh6 {[%emt 0:00:10]} Kd7 {[%emt 0:00:44]} 36. Rg3 {[%emt 0:00:10]} Bf5 {[%emt 0:00:24]} 37. Rg8 {[%emt 0:00:45]} c5 {[%emt 0:00:31]} 38. Bg5 {[%emt 0:00:13]} c4 {[%emt 0:01:07]} 39. Rd8+ {[%emt 0:00:10]} Kc6 {[%emt 0:00:11]} 40. Rd6+ {[%emt 0:00:10]} Kb5 {[%emt 0:00:10]} 41. Rf6 {[%emt 0:00:10]} Bg4 {[%emt 0:00:10]} 42. f5 {[%emt 0:00:33]} Re2+ {[%emt 0:00:10]} 43. Kf1 {[%emt 0:00:10]} Rxe5 {[%emt 0:00:15]} 44. Rxf7 {[%emt 0:00:10]} Bxf5 {[%emt 0:00:10]} 45. Bf6 {[%emt 0:00:45]} Bd3+ {[%emt 0:00:11]} 46. Kf2 {[%emt 0:00:10]} Re2+ {[%emt 0:00:10]} 47. Kf3 {[%emt 0:00:10]} Re1 {[%emt 0:00:10]} 48. Rf8 {[%emt 0:00:13]} Kc6 {[%emt 0:00:12]} 49. Kf2 {[%emt 0:00:10]} Re2+ {[%emt 0:00:10]} 50. Kf3 {[%emt 0:00:10]} Re1 {[%emt 0:00:10]} 51. Kf2 {[%emt 0:00:10]} Rf1+ {[%emt 0:00:10]} 52. Ke3 {[%emt 0:00:10]} Kb5 {[%emt 0:00:10]} 53. Bg7 {[%emt 0:00:10]} Re1+ {[%emt 0:00:10]} 54. Kd4 {[%emt 0:00:10]} Re4+ {[%emt 0:00:10]} 55. Kd5 {[%emt 0:00:10]} Rg4 {[%emt 0:00:10]} 56. Rb8+ {[%emt 0:00:10]} Ka4 {[%emt 0:00:10]} 57. Bc3 {[%emt 0:00:10]} Rg5+ {[%emt 0:00:10]} 58. Kd4 {[%emt 0:00:10]} Rg4+ {[%emt 0:00:10]} 59. Kd5 {[%emt 0:00:10]} Ka3 {[%emt 0:00:11]} 60. Kc5 {[%emt 0:00:10]} Rg5+ {[%emt 0:00:10]} 61. Kd4 {[%emt 0:00:10]} Rg4+ {[%emt 0:00:10]} 62. Kc5 {[%emt 0:00:10]} Rh4 {[%emt 0:00:10]} 63. Kd5 {[%emt 0:00:10]} Rh5+ {[%emt 0:00:10]} 64. Kd4 {[%emt 0:00:10]} Rh4+ {[%emt 0:00:10]} 65. Kc5 {[%emt 0:00:10]} Be2 {[%emt 0:00:10]} 66. Bb4+ {[%emt 0:00:10]} Ka2 {[%emt 0:00:10]} 67. Bc3 {[%emt 0:00:10]} Rh5+ {[%emt 0:00:10]} 68. Kd4 {[%emt 0:00:10]} Rh4+ {[%emt 0:00:10]} 69. Kc5 {[%emt 0:00:10]} Rh5+ {[%emt 0:00:10]} 70. Kd4 {[%emt 0:00:10]} 1/2-1/2

[Event "GCT Saint Louis Rapid 2019"]
[Site "Saint Louis"]
[Date "2019.08.11"]
[Round "6.4"]
[White "Yu, Yangyi"]
[Black "Carlsen, Magnus"]
[Result "1/2-1/2"]
[ECO "B08"]
[WhiteElo "2736"]
[BlackElo "2872"]
[Annotator "ChessBase"]
[PlyCount "138"]
[EventDate "2019.08.10"]
[EventType "tourn"]
[EventCountry "USA"]
[SourceTitle "playchess.com"]
[Source "ChessBase"]
[SourceQuality "1"]
[TimeMode "Bronstein"]
[TimeControl "1500+10"]

1. e4 {[%emt 0:00:00]} d6 {[%emt 0:00:00]} 2. d4 {[%emt 0:00:00]} Nf6 {[%emt 0:00:00]} 3. Nc3 {[%emt 0:00:00]} g6 {[%emt 0:00:00]} 4. Nf3 {[%emt 0:00:00]} Bg7 {[%emt 0:00:00]} 5. Be2 {[%emt 0:00:00]} O-O {[%emt 0:00:00]} 6. O-O {[%emt 0:00:00]} c6 {[%emt 0:00:00]} 7. a4 {[%emt 0:00:00]} Nbd7 {[%emt 0:00:00]} 8. a5 {[%emt 0:00:00]} Qc7 {[%emt 0:00:56]} 9. h3 {[%emt 0:00:27]} e5 {[%emt 0:01:46]} 10. Be3 {[%emt 0:01:36]} Re8 {[%emt 0:00:44]} 11. Bc4 {[%emt 0:03:35]} exd4 {[%emt 0:00:39]} 12. Bxd4 {[%emt 0:00:10]} Ne5 {[%emt 0:01:42]} 13. Nxe5 {[%emt 0:01:10]} dxe5 {[%emt 0:00:10]} 14. Be3 {[%emt 0:00:10]} Nh5 {[%emt 0:00:42]} 15. Na4 {[%emt 0:02:22]} Nf4 {[%emt 0:00:17]} 16. Nc5 {[%emt 0:00:10]} Qe7 {[%emt 0:01:09]} 17. Qf3 {[%emt 0:01:44]} Ne6 {[%emt 0:02:38]} 18. c3 {[%emt 0:01:22]} Bf8 {[%emt 0:02:51]} 19. Rfd1 {[%emt 0:00:33]} Qc7 {[%emt 0:00:59]} 20. Bxe6 {[%emt 0:01:11]} Bxe6 {[%emt 0:00:10]} 21. b4 {[%emt 0:01:33]} Bc8 {[%emt 0:00:30]} 22. Rd2 {[%emt 0:00:43]} Rd8 {[%emt 0:00:11]} 23. Rxd8 {[%emt 0:00:35]} Qxd8 {[%emt 0:00:10]} 24. Rd1 {[%emt 0:00:10]} Qe7 {[%emt 0:00:47]} 25. Na4 {[%emt 0:01:52]} Qc7 {[%emt 0:04:16]} 26. Bg5 {[%emt 0:02:12]} Be6 {[%emt 0:00:10]} 27. Nc5 {[%emt 0:00:10]} Re8 {[%emt 0:00:32]} 28. Nxe6 {[%emt 0:01:42]} Rxe6 {[%emt 0:00:10]} 29. Rd8 {[%emt 0:00:10]} h6 {[%emt 0:01:10]} 30. Bf6 {[%emt 0:00:10]} c5 {[%emt 0:00:10]} 31. Ra8 {[%emt 0:00:57]} cxb4 {[%emt 0:00:18]} 32. cxb4 {[%emt 0:00:10]} Qd6 {[%emt 0:03:59]} 33. Bh4 {[%emt 0:00:31]} Qxb4 {[%emt 0:00:37]} 34. Rxa7 {[%emt 0:01:00]} Ra6 {[%emt 0:00:18]} 35. Rxa6 {[%emt 0:00:10]} bxa6 {[%emt 0:00:10]} 36. Bd8 {[%emt 0:00:13]} Bc5 {[%emt 0:00:45]} 37. g4 {[%emt 0:00:15]} Qd4 {[%emt 0:00:21]} 38. Bc7 {[%emt 0:00:14]} Kg7 {[%emt 0:00:10]} 39. Kg2 {[%emt 0:00:10]} f6 {[%emt 0:00:10]} 40. Qe2 {[%emt 0:00:15]} Kf7 {[%emt 0:00:10]} 41. Bd8 {[%emt 0:01:41]} g5 {[%emt 0:00:13]} 42. Qa2+ {[%emt 0:00:36]} Kg7 {[%emt 0:00:10]} 43. Qc2 {[%emt 0:00:10]} Kg6 {[%emt 0:00:10]} 44. Bc7 {[%emt 0:00:11]} h5 {[%emt 0:00:10]} 45. Qe2 {[%emt 0:00:10]} hxg4 {[%emt 0:00:10]} 46. hxg4 {[%emt 0:00:10]} Kg7 {[%emt 0:00:10]} 47. Qc2 {[%emt 0:00:10]} Kf8 {[%emt 0:00:10]} 48. Bd8 {[%emt 0:00:13]} Kg7 {[%emt 0:00:10]} 49. Bc7 {[%emt 0:00:10]} Ba7 {[%emt 0:00:10]} 50. Kf3 {[%emt 0:00:15]} Kg6 {[%emt 0:00:13]} 51. Kg3 {[%emt 0:00:10]} Qb4 {[%emt 0:00:13]} 52. Kg2 {[%emt 0:00:11]} Qc5 {[%emt 0:00:11]} 53. Qxc5 {[%emt 0:00:10]} Bxc5 {[%emt 0:00:10]} 54. Bb6 {[%emt 0:00:10]} Be7 {[%emt 0:00:10]} 55. Kf3 {[%emt 0:00:10]} Kf7 {[%emt 0:00:10]} 56. Ke2 {[%emt 0:00:10]} Ke6 {[%emt 0:00:10]} 57. Kd3 {[%emt 0:00:10]} Kd7 {[%emt 0:00:10]} 58. Kc4 {[%emt 0:00:10]} Ke6 {[%emt 0:00:10]} 59. f3 {[%emt 0:00:10]} Bd6 {[%emt 0:00:10]} 60. Bd8 {[%emt 0:00:10]} Bf8 {[%emt 0:00:10]} 61. Bb6 {[%emt 0:00:11]} Bd6 {[%emt 0:00:10]} 62. Bd8 {[%emt 0:00:10]} Bf8 {[%emt 0:00:10]} 63. Bc7 {[%emt 0:00:10]} Bd6 {[%emt 0:00:10]} 64. Bb6 {[%emt 0:00:10]} Be7 {[%emt 0:00:10]} 65. Bc7 {[%emt 0:00:16]} Kd7 {[%emt 0:00:13]} 66. Bb6 {[%emt 0:00:10]} Kc6 {[%emt 0:00:10]} 67. Be3 {[%emt 0:00:10]} Bd8 {[%emt 0:00:10]} 68. Bd2 {[%emt 0:00:10]} Be7 {[%emt 0:00:10]} 69. Bc3 {[%emt 0:00:10]} Bc5 {[%emt 0:00:10] Kd4 Kd5+} 1/2-1/2

[Event "GCT Saint Louis Rapid 2019"]
[Site "Saint Louis"]
[Date "2019.08.12"]
[Round "9.1"]
[White "Caruana, Fabiano"]
[Black "Vachier-Lagrave, Maxime"]
[Result "0-1"]
[ECO "D78"]
[WhiteElo "2819"]
[BlackElo "2775"]
[Annotator "RC"]
[PlyCount "74"]
[EventDate "2019.08.10"]
[EventType "tourn"]
[EventCountry "USA"]
[SourceTitle "playchess.com"]
[Source "ChessBase"]
[SourceQuality "1"]
[TimeMode "Bronstein"]
[TimeControl "1500+10"]

1. d4 {[%emt 0:00:00]} Nf6 {[%emt 0:00:00]} 2. c4 {[%emt 0:00:00]} g6 {[%emt 0:00:00]} 3. g3 {[%emt 0:00:00]} c6 {[%emt 0:00:00]} 4. Bg2 {[%emt 0:00:00]} d5 {[%emt 0:00:00]} 5. Nf3 {[%emt 0:00:00]} Bg7 {[%emt 0:00:00]} 6. O-O {[%emt 0:00:00]} O-O {[%emt 0:00:00]} 7. Nbd2 {[%emt 0:00:00]} a5 {[%emt 0:00:39]} 8. b3 {[%emt 0:00:00]} a4 {[%emt 0:00:10]} 9. Ba3 {[%emt 0:00:00]} Re8 {[%emt 0:00:10]} 10. e3 {[%emt 0:00:00]} Bf5 {[%emt 0:00:10]} 11. Qe2 {[%emt 0:00:00]} Nbd7 {[%emt 0:00:10]} 12. cxd5 {[%emt 0:01:03]} Nxd5 {[%emt 0:00:57]} 13. e4 {[%emt 0:03:47]} Nc3 {[%emt 0:00:10]} 14. Qd3 {[%emt 0:00:10]} Nb5 {[%emt 0:00:10]} 15. exf5 {[%emt 0:00:10]} Nxa3 {[%emt 0:00:10]} 16. bxa4 {[%emt 0:00:10]} Rxa4 {[%emt 0:00:10]} 17. Qb3 {[%emt 0:00:13]} Ra7 {[%emt 0:00:58]} 18. Ng5 {[%emt 0:02:20]} Rf8 {[%emt 0:00:10]} 19. Be4 {[%emt 0:02:07]} Qb6 {[%emt 0:02:56]} 20. fxg6 {[%emt 0:00:59]} hxg6 {[%emt 0:00:10]} 21. Qf3 {[%emt 0:01:07]} Qxd4 {[%emt 0:03:56]} 22. Rad1 {[%emt 0:00:15]} Nf6 {[%emt 0:00:10]} 23. Nb3 {[%emt 0:01:46]} Qe5 {[%emt 0:00:30]} 24. h4 {[%emt 0:00:10]} Nxe4 {[%emt 0:00:25]} 25. Nxe4 {[%emt 0:00:10]} Nb5 {[%emt 0:00:40]} 26. Nec5 {[%emt 0:00:53]} Nc3 {[%emt 0:02:38]} 27. Rd3 {[%emt 0:00:28]} Re8 {[%emt 0:01:48]} 28. Kg2 {[%emt 0:02:16]} Nd5 {[%emt 0:01:15]} 29. Rd2 {[%emt 0:00:42]} b6 {[%emt 0:00:10]} 30. Ne4 {[%emt 0:00:15]} Qf5 {[%emt 0:00:35]} 31. Qe2 {[%emt 0:01:37]} Rea8 {[%emt 0:00:55]} 32. Ng5 {[%emt 0:00:21]} Ra4 {[%emt 0:00:29]} 33. Rh1 {[%emt 0:00:18]} e6 {[%emt 0:00:33]} 34. Nc1 {[%emt 0:00:32]} c5 {[%emt 0:00:32]} 35. Qb5 {[%emt 0:00:17]} Rd4 {[%emt 0:00:32]} 36. Nb3 {[%emt 0:01:07]} Nf4+ {[%emt 0:01:30]} 37. Kh2 {[%emt 0:01:28]} Qd5 {[%emt 0:00:12]} 0-1